bitfinex/quotes_SOLUSD_20260221
["timestamp","ask_amount","ask_price","bid_price","bid_amount"]
[1771702515489,4.11024997,86.51,86.485,0.93744938]
[1771702521897,4.11024997,86.51,86.487,0.93744938]
[1771702522084,11.55796874,86.521,86.487,0.93744938]
[1771702522292,4.11024997,86.52,86.491,0.93744938]
[1771702523100,4.11024997,86.53,86.491,0.93744938]
[1771702528799,11.5568191,86.529,86.491,0.93744938]
[1771702532696,4.11024997,86.52,86.491,0.93744938]
[1771702542017,4.10930805,86.52,86.491,0.93744938]
[1771702552423,11.5578447,86.522,86.492,0.93744938]
[1771702552814,4.10930805,86.52,86.492,0.93744938]
[1771702553820,11.55815485,86.519,86.492,0.93744938]
[1771702574649,28.8877279,86.542,86.494,0.93744938]
[1771702574949,28.8877279,86.542,86.495,11.56136192]
[1771702574950,4.10930805,86.54,86.495,11.56136192]
[1771702575132,4.10930805,86.53,86.496,0.93744938]
[1771702577955,11.55534332,86.541,86.511,0.93744938]
[1771702578166,4.10930805,86.55,86.511,0.93744938]
[1771702578450,11.55281368,86.559,86.521,0.93744938]
[1771702578751,11.55281368,86.559,86.497,40.46383111]
[1771702578752,0.1,86.56,86.531,0.93744938]
[1771702579136,4.20930805,86.56,86.531,0.93744938]
[1771702579329,0.1,86.56,86.531,0.93744938]
[1771702580850,0.1,86.56,86.53,4.10930805]
[1771702580851,0.1,86.56,86.533,0.93744938]
[1771702583959,0.1,86.56,86.535,0.93744938]
[1771702591147,0.1,86.56,86.537,0.93744938]
[1771702594859,0.1,86.56,86.539,0.93744938]
[1771702595061,0.1,86.56,86.541,0.93744938]
[1771702603353,0.1,86.56,86.543,0.93744938]
[1771702603750,0.1,86.56,86.551,0.93744938]
[1771702622069,0.1,86.57,86.548,0.88744938]
[1771702622284,0.1,86.57,86.551,0.88744938]
[1771702624776,0.1,86.58,86.562,0.87370591]
[1771702625183,11.5480817,86.595,86.563,0.87370591]
[1771702625389,11.5480817,86.595,86.57,4.103833]
[1771702625594,11.5480817,86.595,86.571,0.87370591]
[1771702626967,0.1,86.6,86.573,0.87370591]
[1771702627174,0.1,86.6,86.581,0.87370591]
[1771702627387,0.86693271,86.599,86.581,0.87370591]
[1771702627688,0.86693271,86.599,86.573,0.82263446]
[1771702628595,0.86693271,86.599,86.575,0.82263446]
[1771702629577,0.86693271,86.599,86.577,0.82263446]
[1771702632380,0.86693271,86.599,86.578,12.41516131]
[1771702632582,0.86693271,86.599,86.579,0.86488295]
[1771702633189,0.1,86.61,86.578,11.55027836]
[1771702633399,0.1,86.61,86.58,4.103833]
[1771702633400,0.98076975,86.61,86.58,4.103833]
[1771702633902,0.88076975,86.609,86.581,11.54987814]
[1771702636102,0.88076975,86.607,86.57,4.103833]
[1771702639101,0.88076975,86.607,86.58,4.103833]
[1771702641609,0.88076975,86.607,86.581,11.54987814]
[1771702644208,0.88076975,86.607,86.581,11.57143732]
[1771702645409,0.88076975,86.607,86.582,0.02338258]
[1771702646706,0.88076975,86.607,86.58,4.103833]
[1771702648712,0.88076975,86.607,86.576,0.02696637]
[1771702649892,0.88076975,86.607,86.581,0.03219619]
[1771702651498,0.88076975,86.607,86.573,0.03389852]
[1771702651899,0.88076975,86.607,86.581,0.03557414]
[1771702655616,0.88076975,86.607,86.582,0.04050418]
[1771702660128,0.88076975,86.605,86.582,0.04050418]
[1771702662331,0.88076975,86.605,86.56,15.77609729]
[1771702662332,0.88076975,86.605,86.567,11.60452423]
[1771702662629,0.88076975,86.589,86.567,11.55165068]
[1771702663621,0.88076975,86.589,86.567,0.05433286]
[1771702667338,0.88076975,86.589,86.562,0.0600144]
[1771702667934,0.88076975,86.587,86.556,0.06141166]
[1771702668113,0.88076975,86.587,86.551,11.61529318]
[1771702668318,0.88076975,86.587,86.552,0.06141166]
[1771702669933,0.88076975,86.579,86.552,0.06141166]
[1771702673820,0.88076975,86.579,86.551,11.55388152]
[1771702680027,0.88076975,86.579,86.544,28.88687574]
[1771702680435,0.88076975,86.579,86.544,28.9636877]
[1771702680634,0.88076975,86.578,86.541,11.5552166]
[1771702682936,0.88076975,86.578,86.55,4.10027294]
[1771702685338,0.88076975,86.569,86.544,11.55480768]
[1771702685544,0.88076975,86.569,86.532,11.55641843]
[1771702686432,0.88076975,86.569,86.533,0.08375327]
[1771702690742,0.91922478,86.567,86.532,11.55641843]
[1771702692645,0.91922478,86.559,86.532,11.55641843]
[1771702696951,0.91922478,86.559,86.522,0.09396686]
[1771702698947,0.91922478,86.559,86.523,0.0941169]
[1771702700365,0.91922478,86.558,86.523,0.0941169]
[1771702705060,0.91922478,86.549,86.523,0.0941169]
[1771702705265,0.91922478,86.539,86.5,4.10027294]
[1771702705435,0.91922478,86.539,86.501,0.095123]
[1771702706348,0.91922478,86.539,86.5,4.10027294]
[1771702706349,0.91922478,86.539,86.504,0.09525299]
[1771702706836,0.91922478,86.529,86.504,0.09525299]
[1771702708059,0.91922478,86.529,86.5,0.09553103]
[1771702711863,0.91922478,86.519,86.491,11.65795831]
[1771702712040,0.91922478,86.519,86.491,11.56189661]
[1771702714940,4.10027294,86.51,86.491,11.56189661]
[1771702715139,0.91922478,86.509,86.491,11.56189661]
[1771702728975,0.91922478,86.509,86.49,0.2]
[1771702729364,0.91922478,86.509,86.492,0.09818974]
[1771702729567,0.88076975,86.519,86.492,0.09818974]
[1771702740492,0.88076975,86.524,86.492,0.09818974]
[1771702740684,0.88076975,86.529,86.501,0.09925216]
[1771702741284,0.88076975,86.529,86.502,0.09933116]
[1771702743293,0.88076975,86.529,86.491,28.90474153]
[1771702743294,0.88076975,86.529,86.511,0.0994943]
[1771702747689,0.88076975,86.533,86.511,11.65871798]
[1771702747994,0.88076975,86.533,86.512,0.09996789]
[1771702752200,0.88076975,86.533,86.506,11.5597848]
[1771702752498,0.90752884,86.529,86.506,11.5597848]
[1771702754696,0.90752884,86.529,86.501,11.56055999]
[1771702754894,0.90752884,86.529,86.502,0.10028631]
[1771702783416,0.92104759,86.527,86.492,0.09637306]
[1771702783732,0.92104759,86.519,86.491,11.56189661]
[1771702785836,0.92104759,86.519,86.491,11.65806212]
[1771702787625,0.92104759,86.519,86.492,0.09595451]
[1771702794016,0.92104759,86.539,86.501,0.09528293]
[1771702794907,0.92104759,86.529,86.501,0.09528293]
[1771702795708,0.92104759,86.529,86.5,4.10947156]
[1771702795709,0.92104759,86.529,86.511,0.09519122]
[1771702825249,0.92104759,86.529,86.502,0.08695576]
[1771702834568,0.92630896,86.535,86.502,0.08695576]
[1771702834745,0.92630896,86.549,86.52,4.10947156]
[1771702834949,0.92630896,86.549,86.521,0.08251326]
[1771702836546,0.92630896,86.549,86.522,0.08157764]
[1771702844976,0.92630896,86.549,86.531,0.07764759]
[1771702849475,0.92630896,86.549,86.523,0.07562955]
[1771702850173,0.88076975,86.56,86.531,0.0752411]
[1771702850473,0.88076975,86.56,86.541,0.0752411]
[1771702855172,12.43352066,86.56,86.541,0.0752411]
[1771702855682,0.88076975,86.559,86.541,0.0752411]
[1771702857185,12.4337169,86.558,86.541,0.0752411]
[1771702857489,0.88076975,86.557,86.541,0.0752411]
[1771702861193,0.88076975,86.549,86.514,0.07123894]
[1771702861503,0.88076975,86.539,86.5,4.10530673]
[1771702862169,0.88076975,86.539,86.51,4.10530673]
[1771702863474,0.88076975,86.539,86.511,11.55922368]
[1771702869908,0.91638922,86.537,86.501,0.28432314]
[1771702870106,0.91638922,86.537,86.51,4.10530673]
[1771702872212,0.91638922,86.537,86.511,11.55922368]
[1771702878117,0.91638922,86.537,86.502,11.56042634]
[1771702900822,0.91638922,86.537,86.502,40.46149221]
[1771702901023,0.91638922,86.537,86.51,4.10530673]
[1771702902839,0.91638922,86.537,86.511,11.55922368]
[1771702906044,0.91638922,86.537,86.51,4.10708672]
[1771702908145,0.91638922,86.537,86.502,40.46149221]
[1771702912349,0.91638922,86.535,86.502,11.56042634]
[1771702916142,0.91638922,86.533,86.502,11.56042634]
[1771702917250,0.91638922,86.529,86.49,4.30708672]
[1771702917455,0.91638922,86.519,86.49,11.76195748]
[1771702917653,0.91638922,86.509,86.49,0.2]
[1771702949383,0.91638922,86.509,86.491,11.56189661]
[1771702969192,0.91638922,86.509,86.49,0.2]
[1771702974401,0.91638922,86.516,86.49,0.2]
[1771702976790,4.10970085,86.53,86.49,0.2]
[1771702976791,0.91638922,86.509,86.49,0.2]
[1771702981892,0.91638922,86.509,86.49,11.7620246]
[1771702987504,0.91638922,86.529,86.49,15.87172545]
[1771702987815,11.55548365,86.539,86.483,11.56287391]
[1771702987816,0.91638922,86.519,86.483,11.56287391]
[1771702989519,0.91638922,86.517,86.483,11.56287391]
[1771702995425,0.91638922,86.515,86.483,11.56287391]
[1771702995602,4.10970085,86.51,86.483,11.56287391]
[1771702995807,0.91638922,86.509,86.483,11.56287391]
[1771703002430,0.91638922,86.507,86.483,11.56287391]
[1771703005322,0.91638922,86.507,86.48,4.30970085]
[1771703006814,0.91638922,86.507,86.48,0.2]
[1771703007217,4.10970085,86.51,86.48,0.2]
[1771703007218,0.91638922,86.505,86.48,0.2]
[1771703009738,11.56015906,86.504,86.48,0.2]
[1771703009942,0.82027931,86.489,86.461,11.56579837]
[1771703010143,0.82027931,86.489,86.462,0.05135713]
[1771703011967,0.82027931,86.488,86.462,0.05135713]
[1771703012847,0.82027931,86.479,86.46,0.2]
[1771703013568,0.82027931,86.479,86.441,11.71074592]
[1771703014546,0.84146598,86.478,86.441,11.56858435]
[1771703016161,0.84146598,86.478,86.45,15.67699855]
[1771703016467,11.56292216,86.484,86.45,15.67699855]
[1771703016765,12.40438814,86.484,86.46,4.10970085]
[1771703016954,11.56292216,86.484,86.46,4.10970085]
[1771703017160,0.84146598,86.483,86.46,4.10970085]
[1771703018056,0.84146598,86.481,86.441,11.85290749]
[1771703018355,0.84146598,86.481,86.45,4.10970085]
[1771703020449,0.84146598,86.481,86.44,0.2]
[1771703020450,0.84146598,86.479,86.442,11.56845052]
[1771703020778,0.84146598,86.479,86.45,4.10970085]
[1771703021764,0.84146598,86.479,86.451,11.56724618]
[1771703023753,0.84146598,86.477,86.44,0.2]
[1771703023958,4.10970085,86.47,86.44,0.2]
[1771703024159,0.84146598,86.469,86.44,0.2]
[1771703024767,0.84146598,86.469,86.44,4.30970085]
[1771703025470,0.84146598,86.469,86.44,0.2]
[1771703029877,0.84146598,86.467,86.44,0.2]
[1771703030377,0.84146598,86.467,86.441,11.56858435]
[1771703030573,0.84146598,86.472,86.441,11.56858435]
[1771703032160,0.84146598,86.469,86.44,0.2]
[1771703032366,0.84146598,86.459,86.44,0.2]
[1771703034567,0.84146598,86.457,86.44,0.2]
[1771703035062,0.84146598,86.457,86.431,11.56992282]
[1771703037589,0.84146598,86.457,86.431,11.76250687]
[1771703038882,0.84146598,86.457,86.431,11.56992282]
[1771703039089,0.84146598,86.457,86.432,0.19237213]
[1771703040584,11.56572873,86.463,86.434,0.78427402]
[1771703041773,4.1139196,86.52,86.441,0.78427402]
[1771703041774,11.56410079,86.475,86.441,0.78427402]
[1771703042676,0.79259488,86.472,86.443,0.78427402]
[1771703044091,11.56457078,86.471,86.444,11.56818286]
[1771703044297,5.47215037,104.65,86.451,0.78427402]
[1771703044298,0.79259488,86.479,86.451,0.78427402]
[1771703045012,0.79259488,86.491,86.461,0.78427402]
[1771703046589,0.79259488,86.49,86.461,0.78427402]
[1771703051800,12.39999879,86.5,86.471,0.80930327]
[1771703052008,11.56072867,86.5,86.471,0.80930327]
[1771703052188,0.83927012,86.499,86.471,0.80930327]
[1771703055007,0.83927012,86.499,86.473,0.80930327]
[1771703062601,28.8988669,86.509,86.473,0.80930327]
[1771703062602,0.83927012,86.497,86.473,0.80930327]
[1771703075801,0.83927012,86.497,86.472,11.56443704]
[1771703075802,0.83927012,86.489,86.431,0.80930327]
[1771703076011,0.83927012,86.479,86.441,0.80930327]
[1771703082436,0.81695836,86.477,86.443,0.8356318]
[1771703082739,0.81695836,86.469,86.443,0.8356318]
[1771703083611,4.1139196,86.47,86.438,0.8356318]
[1771703083612,0.81695836,86.467,86.438,0.8356318]
[1771703086330,0.81695836,86.465,86.432,0.8356318]
[1771703088435,0.81695836,86.463,86.44,4.1139196]
[1771703090038,0.81695836,86.461,86.44,4.11383857]
[1771703090636,0.81695836,86.461,86.44,4.94947037]
[1771703092130,0.81695836,86.483,86.451,0.8356318]
[1771703092839,0.81695836,86.483,86.46,4.94947037]
[1771703093346,0.81695836,86.482,86.461,0.8356318]
[1771703093733,0.81695836,86.492,86.47,4.11383857]
[1771703093933,0.81695836,86.492,86.471,0.8356318]
[1771703095451,0.81695836,86.504,86.472,0.8356318]
[1771703095645,0.81695836,86.504,86.47,4.11383857]
[1771703095948,0.81695836,86.489,86.455,0.8356318]
[1771703097547,0.81695836,86.487,86.455,0.8356318]
[1771703098649,0.81695836,86.485,86.457,0.8356318]
[1771703098856,0.81695836,86.485,86.461,0.8356318]
[1771703099147,0.81695836,86.503,86.471,0.8356318]
[1771703099555,0.81695836,86.499,86.47,4.11383857]
[1771703099750,0.81695836,86.499,86.467,0.8356318]
[1771703100141,0.81695836,86.499,86.437,0.8356318]
[1771703100349,0.81695836,86.469,86.431,11.56992282]
[1771703100757,0.81695836,86.459,86.431,11.56992282]
[1771703108551,0.81695836,86.459,86.431,12.34437755]
[1771703109476,0.81695836,86.459,86.432,0.77445473]
[1771703118970,0.82600693,86.457,86.432,0.77445473]
[1771703130064,0.82600693,86.457,86.434,0.77711807]
[1771703137480,0.82600693,86.449,86.43,0.2]
[1771703139566,0.82600693,86.449,86.43,1.03289013]
[1771703140275,0.82600693,86.449,86.431,11.56992282]
[1771703140482,0.76530338,86.458,86.432,0.83289013]
[1771703144696,0.76530338,86.458,86.43,0.2]
[1771703144697,0.76530338,86.458,86.434,0.83289013]
[1771703149710,0.76530338,86.458,86.435,11.5693874]
[1771703149916,0.76530338,86.458,86.436,0.83289013]
[1771703151406,0.76530338,86.458,86.438,0.83289013]
[1771703152205,0.76530338,86.458,86.437,11.5691197]
[1771703160814,0.76530338,86.458,86.437,0.83289013]
[1771703170126,0.78144107,86.462,86.437,0.83289013]
[1771703180036,4.11487176,86.47,86.43,0.2]
[1771703180037,0.82023279,86.475,86.441,0.76723922]
[1771703180228,0.82023279,86.488,86.461,0.76723922]
[1771703180819,11.56243134,86.487,86.461,0.76723922]
[1771703181039,12.38266413,86.487,86.461,0.76723922]
[1771703182739,0.82023279,86.486,86.461,0.76723922]
[1771703189245,11.56269873,86.485,86.461,0.76723922]
[1771703189421,12.38293152,86.485,86.461,0.76723922]
[1771703190645,0.82023279,86.484,86.461,0.76723922]
[1771703207857,0.78039814,86.482,86.445,0.77546446]
[1771703208046,0.78039814,86.479,86.441,0.77546446]
[1771703211965,0.78039814,86.477,86.442,0.77546446]
[1771703215459,11.56390212,86.476,86.442,0.77546446]
[1771703215758,0.78039814,86.475,86.442,0.77546446]
[1771703215954,0.78039814,86.475,86.444,0.77546446]
[1771703217074,0.78039814,86.473,86.444,0.77546446]
[1771703223169,0.78039814,86.469,86.431,0.77546446]
[1771703223363,0.78039814,86.469,86.432,0.77546446]
[1771703227086,0.78039814,86.459,86.431,11.56992282]
[1771703227288,0.78039814,86.449,86.43,0.2]
[1771703233369,0.78039814,86.449,86.431,12.28724956]
[1771703233574,11.56628336,86.459,86.432,0.71732674]
[1771703234896,3.69383402,86.503,86.434,0.71732674]
[1771703235083,4.11325677,86.47,86.434,0.71732674]
[1771703235692,0.7351645,86.469,86.434,0.71732674]
[1771703236491,0.7351645,86.469,86.436,0.71732674]
[1771703237286,0.7351645,86.469,86.441,0.71732674]
[1771703237486,0.7351645,86.469,86.442,11.56845052]
[1771703237687,0.7351645,86.469,86.443,0.71732674]
[1771703240799,0.7351645,86.469,86.445,0.71732674]
[1771703243980,0.7351645,86.469,86.447,0.71732674]
[1771703255010,0.7351645,86.469,86.449,0.71732674]
[1771703255213,0.7351645,86.484,86.451,0.71732674]
[1771703257291,4.11325677,86.48,86.453,0.71732674]
[1771703257584,0.7351645,86.479,86.453,0.71732674]
[1771703259511,0.7351645,86.479,86.455,0.72003363]
[1771703264715,0.7351645,86.479,86.457,0.72003363]
[1771703274321,0.7351645,86.479,86.452,0.72003363]
[1771703274615,0.7815625,86.469,86.431,11.85424596]
[1771703274910,0.7815625,86.469,86.431,11.56992282]
[1771703276616,0.7815625,86.467,86.434,0.72003363]
[1771703286307,11.56523951,86.466,86.441,0.72003363]
[1771703286503,0.7815625,86.47,86.441,0.72003363]
[1771703286707,12.34571993,86.475,86.451,0.72003363]
[1771703287820,0.78370605,86.474,86.451,0.72003363]
[1771703304345,11.5643033,86.473,86.451,0.72003363]
[1771703304542,0.75562602,86.472,86.451,0.72003363]
[1771703313226,0.75562602,86.469,86.445,11.56793473]
[1771703314129,0.75562602,86.469,86.445,0.76896165]
[1771703322837,11.56497201,86.468,86.445,0.76896165]
[1771703323038,0.79153117,86.459,86.434,0.7598788]
[1771703326647,0.79153117,86.459,86.42,0.2]
[1771703326648,4.11291568,86.45,86.42,0.2]
[1771703326843,0.79153117,86.449,86.42,0.2]
[1771703327048,0.79153117,86.449,86.421,0.7598788]
[1771703327753,0.79153117,86.447,86.421,0.7598788]
[1771703329654,0.79153117,86.445,86.421,0.7598788]
[1771703330950,0.79153117,86.443,86.421,0.7598788]
[1771703342462,28.91577413,86.458,86.42,4.31558233]
[1771703342463,0.79153117,86.457,86.431,0.7598788]
[1771703349249,0.79153117,86.457,86.433,0.7262836]
[1771703352966,0.79153117,86.457,86.434,11.56952125]
[1771703355070,0.79153117,86.457,86.434,0.78511826]
[1771703361075,0.79153117,86.457,86.435,12.35450566]
[1771703361660,0.79153117,86.457,86.436,0.78511826]
[1771703362476,0.79153117,86.457,86.438,0.78511826]
[1771703362680,0.79370873,86.468,86.438,0.78511826]
[1771703364980,0.79370873,86.459,86.438,0.78511826]
[1771703374394,0.79370873,86.457,86.432,12.35489458]
[1771703374692,0.79370873,86.457,86.433,0.78511826]
[1771703377897,0.79370873,86.457,86.435,0.72935729]
[1771703383088,0.7534826,86.455,86.424,11.57082498]
[1771703383272,0.7534826,86.455,86.425,0.72935729]
[1771703384388,0.7534826,86.463,86.431,0.72935729]
[1771703386387,0.7534826,86.463,86.432,11.56978896]
[1771703386587,0.7534826,86.463,86.433,0.72935729]
[1771703390399,0.7534826,86.463,86.435,0.72935729]
[1771703394203,0.7534826,86.461,86.435,0.72935729]
[1771703400310,0.7534826,86.459,86.42,0.2]
[1771703400602,0.7534826,86.459,86.421,0.72935729]
[1771703401196,0.7534826,86.449,86.421,11.57126161]
[1771703401387,0.7534826,86.449,86.422,0.72935729]
[1771703404809,0.7534826,86.449,86.424,0.72935729]
[1771703405710,0.7534826,86.449,86.423,11.57099383]
[1771703406015,0.7534826,86.447,86.411,0.72935729]
[1771703406198,0.7534826,86.439,86.411,0.72935729]
[1771703407495,0.7534826,86.439,86.412,0.72935729]
[1771703410713,0.7534826,86.439,86.413,11.57233286]
[1771703410916,0.7534826,86.439,86.414,0.73801207]
[1771703417119,0.77451161,86.437,86.41,0.2]
[1771703417605,0.77451161,86.419,86.37,0.2]
[1771703417805,0.77451161,86.409,86.373,11.57767021]
[1771703418009,0.77451161,86.409,86.378,11.57699471]
[1771703419110,11.57300249,86.408,86.378,11.57699471]
[1771703419311,0.77451161,86.407,86.378,11.57699471]
[1771703419513,0.77451161,86.407,86.37,0.2]
[1771703419719,0.77451161,86.389,86.37,0.2]
[1771703420013,0.77451161,86.389,86.371,0.73801207]
[1771703420620,0.77451161,86.379,86.36,0.2]
[1771703421717,0.77451161,86.379,86.361,0.73801207]
[1771703423303,0.77451161,86.379,86.36,0.2]
[1771703423505,0.77451161,86.379,86.361,0.73801207]
[1771703425705,0.77451161,86.379,86.36,0.2]
[1771703426219,0.77451161,86.379,86.36,4.31483797]
[1771703426423,0.77451161,86.379,86.36,0.2]
[1771703426626,0.77451161,86.379,86.36,4.31483797]
[1771703429125,0.77451161,86.379,86.36,5.05285004]
[1771703429501,0.77451161,86.379,86.361,0.73801207]
[1771703430325,0.77451161,86.4,86.371,0.73801207]
[1771703430510,0.77451161,86.423,86.391,0.73801207]
[1771703430716,0.77451161,86.42,86.391,0.73801207]
[1771703431127,0.77451161,86.399,86.36,4.31483797]
[1771703432022,0.77451161,86.399,86.361,0.73801207]
[1771703432223,0.77451161,86.397,86.371,0.73801207]
[1771703433622,11.57434199,86.398,86.371,0.73801207]
[1771703433623,0.77451161,86.395,86.371,0.73801207]
[1771703434933,0.77451161,86.393,86.371,0.73801207]
[1771703439121,11.57514584,86.392,86.371,0.73801207]
[1771703439322,12.32895029,86.392,86.371,0.73801207]
[1771703440229,0.75380445,86.391,86.371,0.73801207]
[1771703446439,0.75380445,86.389,86.371,0.73801207]
[1771703447740,0.75380445,86.389,86.36,0.2]
[1771703448635,11.5756818,86.388,86.36,4.31483797]
[1771703448933,0.75380445,86.387,86.36,4.31483797]
[1771703449727,3.69383402,86.419,86.371,0.73507841]
[1771703449728,0.75380445,86.391,86.371,0.73507841]
[1771703451149,11.57541382,86.39,86.371,0.73507841]
[1771703451343,12.32921827,86.39,86.371,0.73507841]
[1771703452350,0.75380445,86.39,86.371,0.73507841]
[1771703452532,0.75380445,86.394,86.371,0.73507841]
[1771703454849,0.75380445,86.399,86.371,0.73507841]
[1771703455029,0.75380445,86.405,86.381,0.73507841]
[1771703457937,0.75380445,86.403,86.381,0.73507841]
[1771703460452,0.75380445,86.401,86.381,0.73507841]
[1771703462356,0.75380445,86.399,86.381,0.73507841]
[1771703463436,0.75380445,86.403,86.381,0.73507841]
[1771703464539,0.75380445,86.402,86.381,0.73507841]
[1771703466941,0.75380445,86.4,86.36,15.89882377]
[1771703467146,0.75380445,86.4,86.361,0.73507841]
[1771703467959,11.57420803,86.399,86.361,0.73507841]
[1771703468165,0.79924728,86.398,86.361,0.73507841]
[1771703468663,0.79924728,86.398,86.36,0.2]
[1771703470655,40.51066587,86.397,86.36,0.2]
[1771703470847,0.77537073,86.392,86.36,0.2]
[1771703471353,0.77537073,86.392,86.361,0.76664391]
[1771703475179,0.77537073,86.39,86.361,0.76664391]
[1771703478270,11.57554781,86.389,86.361,0.76664391]
[1771703478657,0.77537073,86.388,86.361,0.76664391]
[1771703479581,0.77537073,86.388,86.36,0.2]
[1771703483281,0.77537073,86.386,86.36,0.2]
[1771703483582,0.77537073,86.386,86.36,0.96682423]
[1771703486974,11.57608381,86.385,86.361,0.76668203]
[1771703487182,0.77537073,86.384,86.361,0.76668203]
[1771703488380,0.77537073,86.384,86.36,0.2]
[1771703488671,0.77537073,86.384,86.36,0.96665614]
[1771703491692,0.77537073,86.382,86.361,0.76654686]
[1771703501596,0.72294093,86.38,86.361,0.76654686]
[1771703503680,0.72294093,86.378,86.36,0.2]
[1771703508783,0.72294093,86.376,86.352,0.76597774]
[1771703508984,0.72294093,86.376,86.352,0.76595952]
[1771703510203,0.72294093,86.374,86.35,0.2]
[1771703512183,11.5776921,86.373,86.35,0.2]
[1771703512390,0.72294093,86.372,86.35,1e-08]
[1771703512595,0.72294093,86.372,86.34,0.2]
[1771703513911,0.72294093,86.37,86.34,0.2]
[1771703514102,0.72294093,86.37,86.341,0.76583244]
[1771703514808,40.52286067,86.371,86.342,0.79125357]
[1771703514809,38.57120001,86.371,86.342,0.79125357]
[1771703516813,0.72294093,86.368,86.342,0.79125357]
[1771703517912,28.94490048,86.371,86.342,0.79125357]
[1771703517913,0.72294093,86.366,86.342,0.79125357]
[1771703520496,0.72294093,86.364,86.342,0.79125357]
[1771703524807,0.72294093,86.362,86.342,0.79125357]
[1771703527199,0.72294093,86.359,86.331,0.79125357]
[1771703529616,0.75770467,86.357,86.331,0.79125357]
[1771703530224,11.57970309,86.358,86.33,0.2]
[1771703530225,0.75770467,86.349,86.33,0.2]
[1771703531811,0.75770467,86.347,86.331,0.73594328]
[1771703533823,0.75770467,86.345,86.33,0.2]
[1771703535834,0.75770467,86.343,86.33,0.2]
[1771703540039,0.75770467,86.369,86.331,11.58332464]
[1771703540232,0.75770467,86.369,86.332,0.73594328]
[1771703540418,0.75770467,86.369,86.341,0.73594328]
[1771703540616,0.75770467,86.369,86.35,4.12305624]
[1771703540821,40.51535531,86.387,86.351,0.73594328]
[1771703541119,40.51535531,86.387,86.361,0.73594328]
[1771703541929,0.28432314,86.398,86.361,0.73594328]
[1771703542237,0.28432314,86.395,86.361,0.73594328]
[1771703542423,4.12305624,86.39,86.35,4.12305624]
[1771703542624,0.75770467,86.389,86.35,4.12305624]
[1771703543142,0.75770467,86.379,86.34,4.12305624]
[1771703544523,4.12305624,86.38,86.34,4.12305624]
[1771703544524,0.75770467,86.377,86.341,0.43164471]
[1771703548642,0.75770467,86.375,86.341,0.43164471]
[1771703556551,0.75770467,86.375,86.33,0.2]
[1771703556552,0.75770467,86.369,86.33,0.2]
[1771703557030,0.75770467,86.369,86.33,0.64519147]
[1771703557233,0.75770467,86.359,86.331,0.44519147]
[1771703557443,0.75770467,86.359,86.33,0.2]
[1771703558555,4.12305624,86.36,86.33,0.2]
[1771703558556,0.78453938,86.357,86.33,0.2]
[1771703559642,0.78453938,86.355,86.33,0.2]
[1771703559841,0.78453938,86.355,86.33,0.64804663]
[1771703560559,0.78453938,86.353,86.33,0.64804663]
[1771703560946,0.78453938,86.353,86.33,0.2]
[1771703565157,11.58050768,86.352,86.33,1e-08]
[1771703565346,0.78453938,86.351,86.33,1e-08]
[1771703567566,0.78453938,86.349,86.33,1e-08]
[1771703567747,0.78453938,86.349,86.33,0.45522147]
[1771703568766,11.58104414,86.348,86.33,0.45522147]
[1771703569065,0.78453938,86.347,86.33,0.45522147]
[1771703573770,0.78453938,86.345,86.33,1e-08]
[1771703581957,28.95059869,86.354,86.33,1e-08]
[1771703581958,0.78453938,86.343,86.33,1e-08]
[1771703584764,0.78453938,86.341,86.32,0.2]
[1771703587363,0.78453938,86.339,86.32,0.2]
[1771703587570,0.78453938,86.362,86.331,0.47041716]
[1771703589982,0.79567976,86.36,86.33,4.12508517]
[1771703590162,0.79567976,86.359,86.327,0.47241819]
[1771703593382,0.82466781,86.357,86.327,0.47241819]
[1771703594970,0.82466781,86.357,86.321,0.47491354]
[1771703599380,0.82466781,86.355,86.321,0.47491354]
[1771703607685,0.82466781,86.366,86.331,0.47460293]
[1771703609698,0.82466781,86.364,86.331,0.47460293]
[1771703609901,0.82466781,86.359,86.321,0.4745586]
[1771703618499,0.78214332,86.357,86.321,0.4745586]
[1771703621112,0.78214332,86.355,86.321,0.4745586]
[1771703622913,0.78214332,86.355,86.323,0.47428138]
[1771703623308,0.78214332,86.353,86.32,4.32508517]
[1771703623908,0.78214332,86.353,86.321,0.47426382]
[1771703626413,0.78214332,86.351,86.321,0.47426382]
[1771703630323,0.78214332,86.349,86.321,0.47426382]
[1771703631228,0.78214332,86.349,86.322,0.47412075]
[1771703639511,11.58077591,86.35,86.331,0.47399028]
[1771703640726,0.78214332,86.353,86.331,0.47399028]
[1771703640928,11.58000675,86.356,86.331,0.47399028]
[1771703641513,28.94733536,86.364,86.331,0.47399028]
[1771703641718,0.78214332,86.359,86.331,0.47399028]
[1771703643408,11.57970309,86.358,86.331,0.47399028]
[1771703643704,0.78214332,86.357,86.331,0.47399028]
[1771703648543,0.79806417,86.362,86.341,0.47382782]
[1771703650735,11.57742402,86.375,86.351,0.47378193]
[1771703651038,12.34717216,86.38,86.351,0.47378193]
[1771703651218,0.77033357,86.379,86.351,0.47378193]